lending/lending_fUSD_20240710
["ID","MTS","AMOUNT","RATE_DAILY","PERIOD"]
[331674649,1720623046271,-1937.22224359,0.00013997,2]
[331674650,1720623046280,-1265.8733999,0.00013998,2]
[331674651,1720623046290,-6158.6883286,0.00013998,2]
[331674652,1720623046299,-266.43574909,0.00013999,2]
[331674653,1720623046308,-615.0,0.00014,2]
[331674654,1720623046318,-233952.77474357,0.00014,2]
[331674655,1720623046327,-37272.88838313,0.00014,2]
[331674656,1720623046338,-6112.02286164,0.00014,2]
[331674657,1720623046351,-343.17574675,0.00014,2]
[331674658,1720623046362,-440.21551809,0.00014,2]
[331674659,1720623046373,-959.66047797,0.00014,2]
[331674660,1720623046384,-2445.96787027,0.00014,2]
[331674661,1720623046400,-470.22347517,0.00014,2]
[331674662,1720623046411,-289.3695992,0.00014,2]
[331674663,1720623046423,-280.60799999,0.00014,2]
[331674664,1720623046434,-1777.62650782,0.00014,2]
[331674665,1720623046444,-777.12688439,0.00014,2]
[331674666,1720623046455,-9388.91264596,0.00014,2]
[331674667,1720623046466,-542.53107426,0.00014,2]
[331674668,1720623046477,-680.59503893,0.00014,2]
[331674669,1720623046488,-588.2734021,0.00014,2]
[331674670,1720623046499,-648.7419346,0.00014,2]
[331674671,1720623046510,-5177.5175671,0.00014,2]
[331674672,1720623046521,-6856.4783008,0.00014,2]
[331674673,1720623046544,-856.20926424,0.00014,2]
[331674682,1720623386815,737.56,0.00010863,2]
[331674686,1720623616128,500.0,0.00027,120]
[331674688,1720623719211,7460.13299618,0.00011199,2]
[331674689,1720623719232,8849.38310727,0.00011199,2]
[331674690,1720623778142,266.59430404,0.00011199,2]
[331674691,1720623862183,7385.69155491,0.00011199,2]
[331674692,1720623897300,292.47425253,0.00011199,2]
[331674714,1720624083519,714.98,0.00010459,2]
[331674735,1720624220181,900.0,0.00025,60]
[331674736,1720624232085,-250.0,0.00012338,2]
[331674737,1720624232097,-250.0,0.00012551,2]
[331674738,1720624232107,-1000.0,0.00012591,2]
[331674739,1720624232116,-150.0,0.000126,2]
[331674740,1720624232125,-1928.37736849,0.00012627,2]
[331674741,1720624232137,-2657.68850979,0.00012627,2]
[331674742,1720624232147,-364.42,0.00012627,2]
[331674743,1720624232157,-714.98,0.00012722,2]
[331674744,1720624232169,-150.0,0.0001295,2]
[331674745,1720624232180,-500.0,0.00013073,2]
[331674746,1720624232192,-500.0,0.00013082,2]
[331674747,1720624232203,-500.0,0.0001309,2]
[331674748,1720624232212,-500.0,0.00013099,2]
[331674749,1720624232223,-500.0,0.00013108,2]
[331674750,1720624232235,-500.0,0.00013117,2]
[331674751,1720624232246,-500.0,0.00013126,2]
[331674752,1720624232256,-300.0,0.00013127,2]
[331674753,1720624232266,-300.0,0.00013127,2]
[331674754,1720624232276,-5000.0,0.00013128,2]
[331674755,1720624232286,-7200.81644736,0.00013128,2]
[331674756,1720624232296,-500.0,0.00013134,2]
[331674757,1720624232306,-500.0,0.00013143,2]
[331674758,1720624232316,-500.0,0.00013152,2]
[331674759,1720624232327,-500.0,0.00013161,2]
[331674760,1720624232338,-500.0,0.0001317,2]
[331674761,1720624232348,-500.0,0.00013178,2]
[331674762,1720624232357,-500.0,0.00013187,2]
[331674763,1720624232368,-500.0,0.00013196,2]
[331674764,1720624232379,-500.0,0.00013205,2]
[331674765,1720624232389,-500.0,0.00013214,2]
[331674766,1720624232400,-150.0,0.00013214,2]
[331674767,1720624232411,-2875.97006666,0.0001322,2]
[331674768,1720624232422,-500.0,0.00013222,2]
[331674769,1720624232432,-500.0,0.00013231,2]
[331674770,1720624232441,-500.0,0.0001324,2]
[331674771,1720624232452,-500.0,0.00013249,2]
[331674772,1720624232461,-500.0,0.00013258,2]
[331674773,1720624232473,-500.0,0.00013266,2]
[331674774,1720624232483,-500.0,0.00013275,2]
[331674775,1720624232495,-500.0,0.00013284,2]
[331674776,1720624232504,-150.0,0.000133,2]
[331674777,1720624232518,-273.286825,0.00013411,2]
[331674778,1720624232529,-263.457034,0.00013411,2]
[331674779,1720624232539,-166.939525,0.00013411,2]
[331674780,1720624232550,-177.367032,0.00013411,2]
[331674781,1720624232560,-183.608263,0.00013411,2]
[331674782,1720624232572,-162.62935,0.00013411,2]
[331674783,1720624232582,-273.286825,0.00013578,2]
[331674784,1720624232594,-162.62935,0.00013578,2]
[331674785,1720624232603,-183.608263,0.00013634,2]
[331674786,1720624232612,-150.0,0.0001365,2]
[331674787,1720624232621,-258.992,0.00013657,2]
[331674788,1720624232631,-2507.4,0.0001366,2]
[331674789,1720624232642,-5178.0,0.0001366,2]
[331674790,1720624232652,-1199.0,0.0001366,2]
[331674791,1720624232662,-1662.0,0.0001366,2]
[331674792,1720624232674,-38275.0,0.0001366,2]
[331674793,1720624232684,-388.55,0.00013699,2]
[331674794,1720624232693,-313.4805,0.00013699,2]
[331674795,1720624232702,-33557.74599758,0.00013721,2]
[331674796,1720624233284,-2159.97449723,0.00013721,2]
[331674797,1720624233300,-2009.39774727,0.00013721,2]
[331674798,1720624233311,-606.07139669,0.00013721,2]
[331674800,1720624233323,-1376.65560006,0.00013721,2]
[331674802,1720624233334,-290.15476117,0.00013721,2]
[331674804,1720624233344,-273.286825,0.00013746,2]
[331674805,1720624233353,-133.66963362,0.00013746,2]
[331674806,1720624233364,-28.95971638,0.00013746,2]
[331674807,1720624233374,-166.939525,0.00013746,2]
[331674809,1720624233383,-404.10075862,0.00013757,2]
[331674810,1720624233394,-1157.040219,0.00013757,2]
[331674830,1720624238605,-500.0,0.00013064,2]
[331674832,1720624238616,-1320.16982437,0.00013757,2]
[331674834,1720624238629,-620.39268203,0.00013757,2]
[331674841,1720624238689,-837.09696,0.00013757,2]
[331674846,1720624238727,-1163.382,0.00013757,2]
[331674848,1720624238739,-861.2750253,0.00013757,2]
[331674850,1720624238752,-6984.80343518,0.00013757,2]
[331674852,1720624238764,-40188.70718728,0.00013757,2]
[331674994,1720624240302,-1069.0,0.0001366,2]
[331674996,1720624240312,-26893.98430822,0.00013757,2]
[331674998,1720624240322,-9947.1652,0.00013759,2]
[331675000,1720624240331,-299.4225,0.00013759,2]
[331675002,1720624240341,-448.388,0.00013766,2]
[331675004,1720624240351,-236.00917099,0.00013777,2]
[331675006,1720624240360,-4270.77026159,0.00013799,2]
[331675009,1720624240374,-4270.77026158,0.00013799,2]
[331675011,1720624240384,-4270.77026158,0.00013799,2]
[331675013,1720624240394,-4270.77026158,0.00013799,2]
[331675015,1720624240404,-4270.77026158,0.00013799,2]
[331675017,1720624240413,-4270.77026158,0.00013799,2]
[331675019,1720624240424,-4270.77026158,0.0001382,2]
[331675021,1720624240433,-7747.71713415,0.00013824,2]
[331675023,1720624240442,-935.13,0.00013829,2]
[331675025,1720624240452,-899.89,0.00013839,2]
[331675027,1720624240461,-500.0,0.00013839,2]
[331675029,1720624240472,-500.0,0.00013839,2]
[331675031,1720624240481,-7747.71713415,0.0001384,2]
[331675033,1720624240491,-4270.77026158,0.00013846,2]
[331675035,1720624240501,-7747.71713415,0.00013855,2]
[331675037,1720624240511,-183.608263,0.00013858,2]
[331675039,1720624240520,-7747.71713415,0.0001387,2]
[331675041,1720624240530,-500.0,0.00013873,2]
[331675043,1720624240539,-4270.77026158,0.00013873,2]
[331675045,1720624240549,-7747.71713415,0.00013885,2]
[331675047,1720624240560,-219.6,0.0001389,3]
[331675050,1720624240570,-899.89,0.00013893,2]
[331675052,1720624240579,-500.0,0.00013893,2]
[331675054,1720624240589,-500.0,0.00013893,2]
[331675056,1720624240599,-339.74000108,0.00013899,2]
[331675058,1720624240608,-176.26914324,0.00013899,2]
[331675060,1720624240618,-339.74000108,0.00013899,2]
[331675062,1720624240628,-339.74000108,0.00013899,2]
[331675063,1720624240638,-339.74000108,0.000139,2]
[331675066,1720624240650,-1559.971896,0.000139,2]
[331675068,1720624240659,-339.74000108,0.000139,2]
[331675070,1720624240670,-500.0,0.000139,2]
[331675071,1720624240679,-321.44547856,0.000139,2]
[331675073,1720624240690,-7747.71713415,0.000139,2]
[331675076,1720624240700,-362.1298887,0.000139,2]
[331675077,1720624240709,-339.74000108,0.000139,2]
[331675079,1720624240719,-4270.77026158,0.000139,2]
[331675081,1720624240728,-273.286825,0.00013914,2]
[331675084,1720624240740,-162.62935,0.00013914,2]
[331675086,1720624240749,-935.13,0.00013916,2]
[331675088,1720624240759,-304.49599512,0.00013926,2]
[331675090,1720624240768,-500.0,0.00013926,2]
[331675092,1720624240778,-500.0,0.00013926,2]
[331675094,1720624240788,-500.0,0.00013926,2]
[331675095,1720624240797,-500.0,0.00013926,2]
[331675097,1720624240806,-500.0,0.00013926,2]
[331675100,1720624240816,-500.0,0.00013926,2]
[331675102,1720624240828,-500.0,0.00013926,2]
[331675104,1720624240838,-500.0,0.00013926,2]
[331675106,1720624240848,-500.0,0.00013926,2]
[331675108,1720624240858,-500.0,0.00013926,2]
[331675110,1720624240868,-500.0,0.00013926,2]
[331675112,1720624240877,-500.0,0.00013926,2]
[331675114,1720624240887,-1599.37,0.00013926,2]
[331675116,1720624240896,-500.0,0.00013926,2]
[331675118,1720624240906,-500.0,0.00013926,2]
[331675120,1720624240918,-500.0,0.00013926,2]
[331675122,1720624240927,-500.0,0.00013926,2]
[331675124,1720624240937,-500.0,0.00013926,2]
[331675126,1720624240946,-649.41,0.00013926,2]
[331675128,1720624240956,-609.7,0.00013926,2]
[331675130,1720624240966,-500.0,0.00013926,2]
[331675132,1720624240975,-500.0,0.00013926,2]
[331675134,1720624240984,-500.0,0.00013926,2]
[331675136,1720624240994,-500.0,0.00013926,2]
[331675138,1720624241004,-500.0,0.00013926,2]
[331675140,1720624241014,-542.90629145,0.00013926,2]
[331675143,1720624241024,-500.0,0.00013926,2]
[331675145,1720624241034,-500.0,0.00013926,2]
[331675147,1720624241044,-500.0,0.00013926,2]
[331675149,1720624241054,-500.0,0.00013926,2]
[331675151,1720624241063,-500.0,0.00013926,2]
[331675153,1720624241073,-1972.214,0.00013926,2]
[331675155,1720624241083,-1659.0,0.00013926,2]
[331675157,1720624241093,-574.892,0.00013926,2]
[331675159,1720624241103,-809.0,0.00013926,2]
[331675161,1720624241113,-619.0,0.00013926,2]
[331675163,1720624241125,-2376.0,0.00013926,2]
[331675165,1720624241135,-1304.0,0.00013926,2]
[331675167,1720624241144,-1984.0,0.00013926,2]
[331675169,1720624241154,-384.493,0.00013926,2]
[331675171,1720624241163,-3249.0,0.00013926,2]
[331675173,1720624241173,-499.999999,0.00013928,2]
[331675175,1720624241183,-500.0,0.00013928,2]
[331675177,1720624241193,-500.0,0.00013928,2]
[331675179,1720624241202,-359.94382789,0.00013928,2]
[331675181,1720624241212,-500.0,0.00013928,2]
[331675183,1720624241221,-899.89,0.00013948,2]
[331675185,1720624241231,-500.0,0.00013948,2]
[331675187,1720624241243,-500.0,0.00013948,2]
[331675189,1720624241254,-1454.36175,0.00013973,2]
[331675191,1720624241263,-529.97,0.0001398,2]
[331675193,1720624241273,-500.0,0.0001398,2]
[331675195,1720624241282,-500.0,0.0001398,2]
[331675198,1720624241292,-500.0,0.0001398,2]
[331675200,1720624241301,-500.0,0.0001398,2]
[331675202,1720624241310,-500.0,0.0001398,2]
[331675204,1720624241319,-500.0,0.0001398,2]
[331675206,1720624241329,-500.0,0.0001398,2]
[331675208,1720624241338,-500.0,0.0001398,2]
[331675210,1720624241347,-500.0,0.0001398,2]
[331675212,1720624241358,-500.0,0.0001398,2]
[331675214,1720624241368,-500.0,0.0001398,2]
[331675216,1720624241378,-1599.37,0.0001398,2]
[331675218,1720624241388,-343.28,0.0001398,2]
[331675220,1720624241397,-500.0,0.0001398,2]
[331675222,1720624241406,-500.0,0.0001398,2]
[331675224,1720624241415,-500.0,0.0001398,2]
[331675226,1720624241425,-649.41,0.0001398,2]
[331675228,1720624241434,-609.7,0.0001398,2]
[331675230,1720624241445,-500.0,0.0001398,2]
[331675232,1720624241454,-500.0,0.0001398,2]
[331675234,1720624241464,-500.0,0.0001398,2]
[331675236,1720624241473,-500.0,0.0001398,2]
[331675238,1720624241483,-500.0,0.0001398,2]
[331675240,1720624241492,-500.0,0.0001398,2]
[331675242,1720624241502,-500.0,0.0001398,2]
[331675244,1720624241512,-500.0,0.0001398,2]
[331675246,1720624241521,-500.0,0.0001398,2]
[331675247,1720624241531,-500.0,0.00013983,2]
[331675248,1720624241540,-414.6,0.00013983,2]
[331675249,1720624241549,-500.0,0.00013983,2]
[331675250,1720624241558,-935.13,0.00013987,2]
[331675251,1720624241567,-935.13,0.00013989,2]
[331675252,1720624241576,-935.13,0.00013989,2]
[331675253,1720624241586,-155.3679551,0.00013989,2]
[331675254,1720624241595,-1325.45972909,0.00013996,2]
[331675255,1720624241605,-10603.67783272,0.00013997,2]
[331675257,1720624241614,-1054.8944999,0.00013998,2]
[331675258,1720624241624,-369678.55503171,0.00013999,2]
[331675260,1720624241635,-155.0,0.00013999,2]
[331675262,1720624241645,-1444.20257897,0.00013999,2]
[331675264,1720624241655,-675.0,0.00014,2]
[331675267,1720624241665,-228103.95537498,0.00014,2]
[331675269,1720624241684,-2164417.14568346,0.00014,2]
[331675271,1720624241693,-2000.0,0.00014,2]
[331675273,1720624241703,-155.12813853,0.00014,2]
[331675275,1720624241712,-6005640.52634484,0.00014,2]
[331675277,1720624241721,-552282.56197442,0.00014,2]
[331675279,1720624241732,-4647474.86900369,0.00014,2]
[331675281,1720624241741,-1140138.30582193,0.00014,2]
[331675394,1720624246443,-1882.0,0.00014,2]
[331675395,1720624246647,-404.4543634,0.00014,2]
[331675403,1720624353693,150.5,0.0001399,30]
[331675404,1720624353940,150.5,0.0001398,30]
[331675405,1720624354552,150.5,0.0001397,30]
[331675406,1720624355753,150.5,0.0001422,30]
[331675407,1720624357758,226.38,0.0001421,30]
[331675413,1720624399048,507.486518,0.00025278,120]
[331675415,1720624407087,500.0,0.00025278,120]
[331675416,1720624407600,500.0,0.00025778,120]
[331675417,1720624416402,1400.34614592,0.00011199,2]
[331675418,1720624421808,600.0,0.00011199,2]
[331675421,1720624455771,338.95730308,0.00011199,2]
[331675426,1720624463076,589.19612045,0.00011199,2]
[331675430,1720624470834,150.5,0.0001399,30]
[331675431,1720624471333,150.5,0.0001398,30]
[331675432,1720624471809,150.5,0.0001397,30]
[331675433,1720624473259,269.65,0.00014212,30]
[331675434,1720624475429,465.08279601,0.00011199,2]
[331675437,1720624484316,155.0,0.00011199,2]
[331675438,1720624490243,409.09876858,0.00011199,2]
[331675443,1720624519570,155.0,0.00011199,2]
[331675458,1720624690964,1444.20257897,0.00011199,2]
[331675459,1720624692128,729.74,0.00010787,2]
[331675468,1720624823464,1444.20257897,0.00011199,2]
[331675470,1720624836316,533.90157478,0.00011199,2]
[331675481,1720624987971,1444.20257897,0.00011199,2]
[331675486,1720625029460,155.0,0.00011199,2]
[331675489,1720625116055,176.26914324,0.00011199,2]
[331675501,1720625248281,693.25,0.00010593,2]
[331675503,1720625280487,1444.20257897,0.00011199,2]
[331675519,1720625368019,-1444.20257897,0.00012302,2]
[331675521,1720625368055,-250.0,0.00012519,2]
[331675522,1720625368088,-842.78,0.00012535,2]
[331675524,1720625368121,-2308.85,0.0001254,2]
[331675525,1720625368153,-500.0,0.00012555,2]
[331675526,1720625368185,-540.98435787,0.00012558,2]
[331675527,1720625368228,-398.94700524,0.00012558,2]
[331675543,1720625432280,-176.26914324,0.00012314,2]
[331675544,1720625432291,-60.06863689,0.00012558,2]
[331675545,1720625432301,-250.0,0.00012561,2]
[331675546,1720625432310,-9208.68,0.0001257,2]
[331675547,1720625432320,-168.19450079,0.000126,2]
[331675548,1720625432329,-177.86,0.00012615,2]
[331675549,1720625432338,-300.0,0.00012631,2]
[331675550,1720625432349,-300.0,0.00012631,2]
[331675551,1720625432358,-150.99,0.00012632,2]
[331675552,1720625432367,-499.99,0.00012632,2]
[331675553,1720625432375,-150.0,0.00012649,2]
[331675554,1720625432384,-2086.77,0.00012682,2]
[331675555,1720625432393,-693.25,0.00012857,2]
[331675556,1720625432402,-155.40245822,0.000129,2]
[331675557,1720625432411,-5000.0,0.00013,2]
[331675558,1720625432420,-500.0,0.00013029,2]
[331675559,1720625432430,-500.0,0.00013038,2]
[331675560,1720625432439,-182.23,0.00013045,2]
[331675561,1720625432449,-500.0,0.00013046,2]
[331675562,1720625432459,-500.0,0.00013055,2]
[331675563,1720625432472,-173.37,0.00013097,2]
[331675564,1720625432480,-4000.45358187,0.000131,2]
[331675565,1720625432489,-150.0,0.00013178,2]
[331675566,1720625432499,-6634.7828742,0.00013448,2]
[331675573,1720625433679,-1143.2171258,0.00013448,2]
[331675575,1720625433689,-929.98929906,0.00013574,2]
[331675577,1720625433699,-1000.0,0.00013583,2]
[331675579,1720625433709,-6308.5396,0.00013657,2]
[331675580,1720625433719,-465.43,0.00013699,2]
[331675581,1720625433728,-758.97,0.00013699,2]
[331675582,1720625433739,-150.0,0.00013699,2]
[331675583,1720625433748,-212.502,0.000138,2]
[331675584,1720625433758,-420.0,0.00013857,2]
[331675585,1720625433767,-500.0,0.00013859,2]
[331675586,1720625433777,-500.0,0.00013859,2]
[331675587,1720625433786,-371.34155435,0.00013859,2]
[331675588,1720625433796,-500.0,0.00013865,2]
[331675589,1720625433805,-500.0,0.00013874,2]
[331675590,1720625433815,-1056.23802,0.0001388,2]
[331675591,1720625433824,-500.0,0.00013882,2]
[331675592,1720625433834,-500.0,0.00013888,2]
[331675593,1720625433844,-500.0,0.00013888,2]
[331675594,1720625433857,-500.0,0.00013891,2]
[331675595,1720625433865,-559.648773,0.000139,2]
[331675596,1720625433875,-1000.0,0.000139,2]
[331675597,1720625433885,-4551.2256,0.000139,2]
[331675598,1720625433894,-1168.3665,0.000139,2]
[331675599,1720625433904,-1000.0,0.000139,2]
[331675600,1720625433913,-500.0,0.000139,2]
[331675601,1720625433923,-820.0055,0.000139,2]
[331675602,1720625433933,-12675.28006769,0.000139,2]
[331675603,1720625433944,-669.94125223,0.000139,2]
[331675604,1720625433956,-865.46028817,0.000139,2]
[331675605,1720625433967,-541.0092199,0.000139,2]
[331675606,1720625433979,-857.25,0.000139,2]
[331675607,1720625433990,-567.14,0.000139,2]
[331675608,1720625434001,-1747.15468688,0.000139,2]
[331675609,1720625434012,-502.90722895,0.000139,2]
[331675610,1720625434023,-2997.5,0.000139,2]
[331675611,1720625434035,-680.66224825,0.000139,2]
[331675612,1720625434047,-9698.38407553,0.000139,2]
[331675613,1720625434057,-335.61916994,0.000139,2]
[331675614,1720625434067,-1832.47803436,0.000139,2]
[331675615,1720625434076,-574.18743623,0.00013901,2]
[331675616,1720625434085,-176.28646201,0.00013914,2]
[331675617,1720625434095,-500.0,0.00013914,2]
[331675618,1720625434105,-500.0,0.00013926,2]
[331675619,1720625434114,-500.0,0.00013926,2]
[331675620,1720625434124,-5178.0,0.0001394,2]
[331675621,1720625434133,-1056.23801,0.0001396,2]
[331675622,1720625434142,-500.0,0.00013969,2]
[331675623,1720625434151,-211.53830797,0.0001398,2]
[331675624,1720625434161,-430.00947767,0.00013989,2]
[331675625,1720625434171,-250.000001,0.0001399,2]
[331675626,1720625434181,-267.92913545,0.0001399,2]
[331675627,1720625434190,-267.92913545,0.0001399,2]
[331675628,1720625434200,-267.92913545,0.0001399,2]
[331675629,1720625434209,-879.07875,0.00013993,2]
[331675630,1720625434219,-95.71866713,0.00013999,2]
[331675631,1720625434231,-54.29133287,0.00013999,2]
[331675632,1720625434240,-2636.15590029,0.00013999,2]
[331675633,1720625434251,-327.24538343,0.00013999,2]
[331675634,1720625434260,-357.47369923,0.00013999,2]
[331675635,1720625434272,-142.52630077,0.00013999,2]
[331675636,1720625434281,-500.0,0.00013999,2]
[331675637,1720625434290,-349.94671366,0.00013999,2]
[331675638,1720625434301,-217.01301326,0.00013999,2]
[331675639,1720625434311,-221.96576538,0.00013999,2]
[331675640,1720625434322,-1244.12423462,0.00013999,2]
[331675641,1720625434331,-500.0,0.00013999,2]
[331675642,1720625434340,-500.0,0.00013999,2]
[331675643,1720625434351,-500.0,0.00013999,2]
[331675644,1720625434360,-500.0,0.00013999,2]
[331675645,1720625434370,-500.0,0.00013999,2]
[331675646,1720625434379,-500.0,0.00013999,2]
[331675647,1720625434388,-500.0,0.00013999,2]
[331675648,1720625434397,-500.0,0.00013999,2]
[331675649,1720625434406,-500.0,0.00013999,2]
[331675650,1720625434415,-500.0,0.00013999,2]
[331675651,1720625434424,-500.0,0.00013999,2]
[331675652,1720625434433,-519.43200374,0.00013999,2]
[331675653,1720625434443,-500.0,0.00013999,2]
[331675654,1720625434452,-500.0,0.00013999,2]
[331675655,1720625434461,-48.17368957,0.00013999,2]
[331675665,1720625438283,-35702.25900792,0.0001394,2]
[331675667,1720625438295,-468.50164004,0.0001394,2]
[331675671,1720625438613,-319.8,0.0001394,2]
[331675672,1720625438625,-369.90456315,0.0001394,2]
[331675673,1720625438643,-994.53623725,0.0001394,2]
[331675674,1720625438654,-419.99855164,0.0001394,2]
[331675675,1720625438666,-451.82631043,0.00013999,2]
[331675676,1720625438675,-465.59121793,0.00013999,2]
[331675677,1720625438687,-34.40878207,0.00013999,2]
[331675678,1720625438697,-500.0,0.00013999,2]
[331675679,1720625438707,-500.0,0.00013999,2]
[331675680,1720625438717,-500.0,0.00013999,2]
[331675681,1720625438727,-478.27,0.00013999,2]
[331675682,1720625438737,-461.1397692,0.00013999,2]
[331675683,1720625438990,-38.8602308,0.00013999,2]
[331675684,1720625439001,-787.4,0.00013999,2]
[331675685,1720625439012,-267.13961605,0.00013999,2]
[331675686,1720625439032,-232.86038395,0.00013999,2]
[331675687,1720625439047,-500.0,0.00013999,2]
[331675688,1720625439057,-500.0,0.00013999,2]
[331675689,1720625439067,-155.0,0.00013999,2]
[331675690,1720625439078,-559.60364109,0.00013999,2]
[331675691,1720625439087,-558.9,0.00013999,2]
[331675692,1720625439097,-698.0,0.00014,2]
[331675693,1720625439108,-8929.48383609,0.00014,2]
[331675694,1720625439126,-1286.51473513,0.00014,2]
[331675695,1720625439153,-4093.73668848,0.00014,2]
[331675696,1720625439167,-10978.45424228,0.00014,2]
[331675697,1720625439180,-8706.14019902,0.00014,2]
[331675698,1720625439193,-1520.39891193,0.00014,2]
[331676362,1720625446627,-493.61764614,0.00013999,2]
[331676368,1720625446684,-988.08299572,0.00013999,2]
[331676371,1720625446696,-2361.91700428,0.00014,2]
[331676882,1720625606850,500.0,0.00025376,120]
[331676885,1720625644721,897.45844353,0.000118,2]
[331676895,1720625801199,245.83589302,0.00025,120]
[331676897,1720625859805,657.51,0.00010947,2]
[331676914,1720626395795,887.36475713,0.00011199,2]
[331676919,1720626632508,-192.72617058,0.00012273,2]
[331676920,1720626632518,-155.09850441,0.00012314,2]
[331676921,1720626632527,-176.26914324,0.00012314,2]
[331676922,1720626632546,-155.0,0.00012314,2]
[331676923,1720626632557,-200.61725219,0.00012314,2]
[331676924,1720626632566,-376.98485868,0.0001251,2]
[331676925,1720626632578,-185.95,0.0001272,2]
[331676926,1720626632587,-198.2440709,0.00012736,2]
[331676929,1720626633762,-51.7559291,0.00012736,2]
[331676930,1720626633773,-182.25,0.00012752,2]
[331676931,1720626633784,-363.55,0.00013102,2]
[331676932,1720626633797,-1000.0,0.00013115,2]
[331676933,1720626633810,-300.0,0.00013127,2]
[331676934,1720626633823,-2115.66136728,0.00013128,2]
[331676935,1720626633837,-686.74742077,0.00013128,2]
[331676938,1720626633851,-500.0,0.00013128,2]
[331676939,1720626633865,-698.04479382,0.00013128,2]
[331676940,1720626633876,-1008.60739968,0.00013128,2]
[331676941,1720626633888,-2900.1,0.00013128,2]
[331676952,1720626638319,-1091.29260032,0.00013128,2]
[331676953,1720626638329,-657.51,0.0001321,2]
[331676954,1720626638338,-260.04977456,0.00013249,2]
[331676955,1720626638348,-1000.0,0.00013269,2]
[331676956,1720626638358,-155.40245822,0.00013516,2]
[331676957,1720626638368,-155.0,0.00013516,2]
[331676958,1720626638378,-500.0,0.00013636,2]
[331676959,1720626638387,-500.0,0.00013645,2]
[331676960,1720626638397,-500.0,0.00013654,2]
[331676961,1720626638409,-500.0,0.00013662,2]
[331676962,1720626638419,-500.0,0.00013671,2]
[331676963,1720626638430,-500.0,0.0001368,2]
[331676964,1720626638439,-2904.77643135,0.00013681,2]
[331676965,1720626638449,-500.0,0.00013689,2]
[331676966,1720626638459,-500.0,0.00013698,2]
[331676967,1720626638469,-410.72340435,0.00013699,2]
[331676968,1720626638481,-146.47659565,0.00013699,2]
[331676969,1720626638491,-337.18340435,0.00013706,2]
[331676970,1720626638585,-162.81659565,0.00013706,2]
[331676971,1720626638595,-140.4766602,0.00013715,2]
[331676972,1720626638608,-359.5233398,0.00013715,2]
[331676973,1720626638619,-387.03250361,0.00013721,2]
[331676974,1720626638630,-563.31326908,0.00013721,2]
[331676975,1720626638642,-815.0,0.00013721,2]
[331676976,1720626638654,-841.67496685,0.00013721,2]
[331676977,1720626638666,-1144.5,0.00013721,2]
[331676978,1720626638687,-20792.47926046,0.00013721,2]
[331676979,1720626638696,-500.0,0.00013724,2]
[331676980,1720626638707,-500.0,0.00013733,2]
[331676981,1720626638716,-500.0,0.00013742,2]
[331676982,1720626638726,-500.0,0.0001375,2]
[331676983,1720626638736,-500.0,0.00013759,2]
[331676984,1720626638746,-500.0,0.00013768,2]
[331676986,1720626638756,-500.0,0.00013777,2]
[331676988,1720626638766,-500.0,0.00013786,2]
[331676990,1720626638776,-500.0,0.00013794,2]
[331676992,1720626638787,-500.0,0.00013803,2]
[331676994,1720626638796,-500.0,0.00013812,2]
[331676996,1720626638806,-500.0,0.00013821,2]
[331676998,1720626638816,-500.0,0.0001383,2]
[331677000,1720626638826,-500.0,0.00013838,2]